[Event "Schack-SM 2024: Mastarklassen"]
[Site "Fortnox Arena, Hejaregatan 5, Vaxjo, Sweden"]
[Date "2024.06.29"]
[Round "1.4"]
[White "Walinder, Lars"]
[Black "Carlstrom, Niklas"]
[Result "1-0"]
[TimeControl "90 minutes for 40 moves + 30 minutes for the rest of the game + 30 seconds per move from move one."]
[WhiteTitle "FM"]
[WhiteElo "2233"]
[BlackElo "2100"]

1. c4 {[%clk 01:30:55]} {[%emt 00:00:04]} e6 {[%clk 01:30:39]} {[%emt
00:00:21]} 2. Nc3 {[%clk 01:31:07]} {[%emt 00:00:19]} d5 {[%clk 01:30:45]}
{[%emt 00:00:23]} 3. e3 {[%clk 01:31:25]} {[%emt 00:00:12]} Nf6 {[%clk
01:30:49]} {[%emt 00:00:26]} 4. Nf3 {[%clk 01:31:36]} {[%emt 00:00:19]} c5
{[%clk 01:30:44]} {[%emt 00:00:34]} 5. cxd5 {[%clk 01:31:51]} {[%emt 00:00:17]}
exd5 {[%clk 01:30:57]} {[%emt 00:00:16]} 6. d4 {[%clk 01:32:10]} {[%emt
00:00:12]} c4 {[%clk 01:31:12]} {[%emt 00:00:15]} 7. Be2 {[%clk 01:23:35]}
{[%emt 00:09:04]} Bb4 {[%clk 01:28:22]} {[%emt 00:03:19]} 8. O-O {[%clk
01:16:57]} {[%emt 00:07:10]} O-O {[%clk 01:25:49]} {[%emt 00:03:01]} 9. Bd2
{[%clk 01:09:42]} {[%emt 00:07:46]} Nc6 {[%clk 01:16:56]} {[%emt 00:09:23]} 10.
Ne5 {[%clk 01:00:39]} {[%emt 00:09:33]} Re8 {[%clk 01:06:29]} {[%emt 00:10:57]}
11. a3 {[%clk 00:44:17]} {[%emt 00:16:53]} Bd6 {[%clk 00:52:32]} {[%emt
00:14:27]} 12. f4 {[%clk 00:42:23]} {[%emt 00:02:24]} Na5 {[%clk 00:39:35]}
{[%emt 00:13:27]} 13. Qe1 {[%clk 00:32:15]} {[%emt 00:10:37]} Nb3 {[%clk
00:37:41]} {[%emt 00:02:24]} 14. Rd1 {[%clk 00:25:33]} {[%emt 00:07:14]} Bf5
{[%clk 00:29:16]} {[%emt 00:08:53]} 15. g4 {[%clk 00:24:49]} {[%emt 00:01:15]}
Bc2 {[%clk 00:28:21]} {[%emt 00:01:24]} 16. g5 {[%clk 00:25:04]} {[%emt
00:00:18]} Bxd1 {[%clk 00:26:12]} {[%emt 00:02:36]} 17. Bxd1 {[%clk 00:20:51]}
{[%emt 00:04:44]} Bxe5 {[%clk 00:24:42]} {[%emt 00:02:00]} 18. fxe5 {[%clk
00:19:57]} {[%emt 00:01:25]} Ne4 {[%clk 00:23:16]} {[%emt 00:01:56]} 19. Nxe4
{[%clk 00:20:19]} {[%emt 00:00:07]} dxe4 {[%clk 00:23:35]} {[%emt 00:00:10]} 20.
h4 {[%clk 00:20:22]} {[%emt 00:00:26]} Rc8 {[%clk 00:19:20]} {[%emt 00:04:45]}
21. Bc3 {[%clk 00:16:29]} {[%emt 00:04:24]} Nc1 {[%clk 00:10:26]} {[%emt
00:09:24]} 22. Bg4 {[%clk 00:15:54]} {[%emt 00:01:05]} Nd3 {[%clk 00:10:35]}
{[%emt 00:00:21]} 23. Qg3 {[%clk 00:16:17]} {[%emt 00:00:07]} Rc6 {[%clk
00:10:21]} {[%emt 00:00:43]} 24. Bf5 {[%clk 00:16:14]} {[%emt 00:00:34]} b5
{[%clk 00:04:50]} {[%emt 00:06:01]} 25. Bxe4 {[%clk 00:16:20]} {[%emt
00:00:25]} Rc8 {[%clk 00:04:52]} {[%emt 00:00:28]} 26. Qf3 {[%clk 00:11:40]}
{[%emt 00:05:09]} Qc7 {[%clk 00:03:19]} {[%emt 00:02:03]} 27. Bd5 {[%clk
00:10:51]} {[%emt 00:01:20]} Re7 {[%clk 00:02:44]} {[%emt 00:01:03]} 28. h5
{[%clk 00:09:28]} {[%emt 00:01:55]} Rd8 {[%clk 00:01:19]} {[%emt 00:01:54]} 29.
g6 {[%clk 00:08:58]} {[%emt 00:00:59]} Rxd5 {[%clk 00:01:05]} {[%emt 00:00:44]}
30. Qxd5 {[%clk 00:09:19]} {[%emt 00:00:10]} Qc8 {[%clk 00:00:56]} {[%emt
00:00:40]} 31. gxf7+ {[%clk 00:07:34]} {[%emt 00:02:14]} Kf8 {[%clk 00:01:18]}
{[%emt 00:00:08]} 32. Kh2 {[%clk 00:06:03]} {[%emt 00:02:02]} Rd7 {[%clk
00:00:51]} {[%emt 00:00:56]} 33. Qf3 {[%clk 00:04:19]} {[%emt 00:02:14]} Qd8
{[%clk 00:00:40]} {[%emt 00:00:42]} 34. e6 {[%clk 00:03:36]} {[%emt 00:01:13]}
Rd5 {[%clk 00:00:44]} {[%emt 00:00:26]} 35. Qxd5 {[%clk 00:01:23]} {[%emt
00:02:44]} Qh4+ {[%clk 00:00:44]} {[%emt 00:00:28]} 36. Kg1 {[%clk 00:01:47]}
{[%emt 00:00:08]} Qg3+ {[%clk 00:01:06]} {[%emt 00:00:07]} 37. Qg2 {[%clk
00:02:13]} {[%emt 00:00:03]} Qxe3+ {[%clk 00:01:30]} {[%emt 00:00:06]} 38. Kh1
{[%clk 00:01:46]} {[%emt 00:00:58]} 1-0

[Event "Schack-SM 2024: Mastarklassen"]
[Site "Fortnox Arena, Hejaregatan 5, Vaxjo, Sweden"]
[Date "2024.06.29"]
[Round "1.5"]
[White "Sundin, Emanuel"]
[Black "Dingertz, Erik"]
[Result "1-0"]
[TimeControl "90 minutes for 40 moves + 30 minutes for the rest of the game + 30 seconds per move from move one."]
[WhiteElo "2165"]
[BlackElo "2081"]

1. e4 {[%clk 01:30:57]} {[%emt 00:00:03]} e5 {[%clk 01:30:39]} {[%emt
00:00:20]} 2. Nf3 {[%clk 01:31:10]} {[%emt 00:00:17]} Nc6 {[%clk 01:30:55]}
{[%emt 00:00:14]} 3. d4 {[%clk 01:31:00]} {[%emt 00:00:41]} exd4 {[%clk
01:31:11]} {[%emt 00:00:14]} 4. Bc4 {[%clk 01:31:07]} {[%emt 00:00:24]} Bc5
{[%clk 01:31:12]} {[%emt 00:00:28]} 5. Ng5 {[%clk 01:31:01]} {[%emt 00:00:35]}
Nh6 {[%clk 01:31:24]} {[%emt 00:00:20]} 6. Nxf7 {[%clk 01:31:16]} {[%emt
00:00:14]} Nxf7 {[%clk 01:31:49]} {[%emt 00:00:05]} 7. Bxf7+ {[%clk 01:31:42]}
{[%emt 00:00:04]} Kxf7 {[%clk 01:32:10]} {[%emt 00:00:09]} 8. Qh5+ {[%clk
01:32:06]} {[%emt 00:00:06]} g6 {[%clk 01:31:19]} {[%emt 00:01:20]} 9. Qxc5
{[%clk 01:32:23]} {[%emt 00:00:13]} d5 {[%clk 01:27:23]} {[%emt 00:04:28]} 10.
O-O {[%clk 01:31:28]} {[%emt 00:01:21]} dxe4 {[%clk 01:25:22]} {[%emt
00:02:33]} 11. c3 {[%clk 01:31:05]} {[%emt 00:00:55]} Bf5 {[%clk 01:22:00]}
{[%emt 00:03:51]} 12. f3 {[%clk 01:15:32]} {[%emt 00:16:03]} e3 {[%clk
01:19:38]} {[%emt 00:02:53]} 13. cxd4 {[%clk 01:14:16]} {[%emt 00:01:46]} Qxd4
{[%clk 01:16:27]} {[%emt 00:03:40]} 14. Bxe3 {[%clk 01:11:48]} {[%emt
00:02:57]} Qxc5 {[%clk 01:16:52]} {[%emt 00:00:06]} 15. Bxc5 {[%clk 01:12:13]}
{[%emt 00:00:04]} b6 {[%clk 01:03:19]} {[%emt 00:14:04]} 16. Bf2 {[%clk
01:05:40]} {[%emt 00:07:03]} Nb4 {[%clk 00:55:54]} {[%emt 00:07:55]} 17. Nc3
{[%clk 00:56:12]} {[%emt 00:10:00]} Rad8 {[%clk 00:54:27]} {[%emt 00:01:56]} 18.
g4 {[%clk 00:49:08]} {[%emt 00:07:34]} Bd3 {[%clk 00:51:04]} {[%emt 00:03:53]}
19. Rfd1 {[%clk 00:45:05]} {[%emt 00:04:32]} c5 {[%clk 00:47:01]} {[%emt
00:04:34]} 20. Rd2 {[%clk 00:38:08]} {[%emt 00:07:26]} Ba6 {[%clk 00:36:47]}
{[%emt 00:10:45]} 21. Rad1 {[%clk 00:35:50]} {[%emt 00:02:49]} Rxd2 {[%clk
00:36:07]} {[%emt 00:01:09]} 22. Rxd2 {[%clk 00:36:18]} {[%emt 00:00:01]} Re8
{[%clk 00:35:53]} {[%emt 00:00:45]} 23. Ne4 {[%clk 00:30:41]} {[%emt 00:06:06]}
Kf8 {[%clk 00:29:18]} {[%emt 00:07:05]} 24. Nxc5 {[%clk 00:25:06]} {[%emt
00:06:05]} Bb5 {[%clk 00:15:56]} {[%emt 00:13:53]} 25. a3 {[%clk 00:19:51]}
{[%emt 00:05:45]} Re2 {[%clk 00:10:06]} {[%emt 00:06:18]} 26. Rxe2 {[%clk
00:17:44]} {[%emt 00:02:37]} Bxe2 {[%clk 00:10:30]} {[%emt 00:00:06]} 27. Ne6+
{[%clk 00:17:27]} {[%emt 00:00:49]} Ke7 {[%clk 00:10:17]} {[%emt 00:00:42]} 28.
Nd4 {[%clk 00:17:40]} {[%emt 00:00:17]} 1-0

[Event "Schack-SM 2024: Mastarklassen"]
[Site "Fortnox Arena, Hejaregatan 5, Vaxjo, Sweden"]
[Date "2024.06.29"]
[Round "1.6"]
[White "Karlsson, Stefan 2005"]
[Black "Lindborg, Patrik"]
[Result "0-1"]
[TimeControl "90 minutes for 40 moves + 30 minutes for the rest of the game + 30 seconds per move from move one."]
[WhiteElo "2072"]
[BlackElo "2162"]

1. e4 {[%clk 01:30:54]} {[%emt 00:00:05]} c5 {[%clk 01:30:50]} {[%emt
00:00:11]} 2. Nf3 {[%clk 01:31:18]} {[%emt 00:00:04]} e6 {[%clk 01:31:17]}
{[%emt 00:00:05]} 3. c3 {[%clk 01:31:42]} {[%emt 00:00:05]} d5 {[%clk
01:31:40]} {[%emt 00:00:08]} 4. exd5 {[%clk 01:32:05]} {[%emt 00:00:08]} Qxd5
{[%clk 01:32:07]} {[%emt 00:00:02]} 5. d4 {[%clk 01:32:13]} {[%emt 00:00:23]}
Nf6 {[%clk 01:32:32]} {[%emt 00:00:04]} 6. Na3 {[%clk 01:32:33]} {[%emt
00:00:09]} Nc6 {[%clk 01:31:55]} {[%emt 00:01:08]} 7. Be3 {[%clk 01:32:21]}
{[%emt 00:00:42]} cxd4 {[%clk 01:31:54]} {[%emt 00:00:31]} 8. Nb5 {[%clk
01:32:44]} {[%emt 00:00:07]} Qd8 {[%clk 01:31:22]} {[%emt 00:01:01]} 9. Nbxd4
{[%clk 01:33:06]} {[%emt 00:00:09]} Nd5 {[%clk 01:30:46]} {[%emt 00:01:05]} 10.
Bg5 {[%clk 01:29:59]} {[%emt 00:03:38]} f6 {[%clk 01:27:38]} {[%emt 00:03:38]}
11. Nxc6 {[%clk 01:28:35]} {[%emt 00:01:54]} bxc6 {[%clk 01:28:01]} {[%emt
00:00:08]} 12. Bd2 {[%clk 01:28:33]} {[%emt 00:00:32]} Bd6 {[%clk 01:21:40]}
{[%emt 00:06:50]} 13. Qc2 {[%clk 01:22:00]} {[%emt 00:07:02]} Qc7 {[%clk
01:13:39]} {[%emt 00:08:32]} 14. O-O-O {[%clk 01:15:54]} {[%emt 00:06:37]} O-O
{[%clk 01:00:25]} {[%emt 00:13:42]} 15. Bd3 {[%clk 00:57:31]} {[%emt 00:18:53]}
f5 {[%clk 00:57:32]} {[%emt 00:03:23]} 16. g4 {[%clk 00:55:30]} {[%emt
00:02:30]} Bf4 {[%clk 00:54:04]} {[%emt 00:03:58]} 17. gxf5 {[%clk 00:52:18]}
{[%emt 00:03:43]} exf5 {[%clk 00:49:06]} {[%emt 00:05:29]} 18. Nd4 {[%clk
00:44:03]} {[%emt 00:08:43]} g6 {[%clk 00:35:26]} {[%emt 00:14:12]} 19. Bc4
{[%clk 00:37:37]} {[%emt 00:06:54]} Kh8 {[%clk 00:32:09]} {[%emt 00:03:49]} 20.
Bxd5 {[%clk 00:22:42]} {[%emt 00:15:25]} cxd5 {[%clk 00:31:50]} {[%emt
00:00:49]} 21. h4 {[%clk 00:20:29]} {[%emt 00:02:41]} h5 {[%clk 00:30:00]}
{[%emt 00:02:21]} 22. Ne2 {[%clk 00:17:32]} {[%emt 00:03:27]} Be5 {[%clk
00:28:56]} {[%emt 00:01:35]} 23. Be3 {[%clk 00:16:48]} {[%emt 00:01:12]} Be6
{[%clk 00:21:13]} {[%emt 00:08:14]} 24. Bd4 {[%clk 00:16:31]} {[%emt 00:00:47]}
Kh7 {[%emt 00:03:46]} 25. Bxe5 {[%clk 00:16:08]} {[%emt 00:00:01]} Qxe5 {[%clk
00:19:14]} {[%emt 00:00:07]} 26. Rd4 {[%clk 00:14:26]} {[%emt 00:02:11]} f4
{[%clk 00:18:32]} {[%emt 00:01:13]} 27. Qd2 {[%clk 00:13:48]} {[%emt 00:01:07]}
Bf5 {[%clk 00:13:31]} {[%emt 00:05:31]} 28. f3 {[%clk 00:12:52]} {[%emt
00:01:26]} Rae8 {[%clk 00:08:26]} {[%emt 00:05:35]} 29. Nxf4 {[%clk 00:12:08]}
{[%emt 00:01:14]} Qf6 {[%clk 00:06:25]} {[%emt 00:02:31]} 30. Nxd5 {[%clk
00:11:28]} {[%emt 00:01:10]} Qa6 {[%clk 00:06:42]} {[%emt 00:00:12]} 31. Nb4
{[%clk 00:10:06]} {[%emt 00:01:53]} Qb7 {[%clk 00:06:51]} {[%emt 00:00:21]} 32.
Rf1 {[%clk 00:07:23]} {[%emt 00:03:12]} Rf7 {[%clk 00:05:36]} {[%emt 00:01:46]}
33. b3 {[%clk 00:05:47]} {[%emt 00:02:05]} Rfe7 {[%clk 00:05:16]} {[%emt
00:00:52]} 34. Nd5 {[%clk 00:05:18]} {[%emt 00:00:58]} Qa6 {[%clk 00:05:07]}
{[%emt 00:00:40]} 35. Rc4 {[%clk 00:03:36]} {[%emt 00:02:11]} Re2 {[%clk
00:02:42]} {[%emt 00:02:57]} 36. Qg5 {[%clk 00:02:23]} {[%emt 00:01:41]} Qa3+
{[%clk 00:02:08]} {[%emt 00:01:04]} 37. Kd1 {[%clk 00:02:44]} {[%emt 00:00:10]}
Bc2# {[%clk 00:02:30]} 0-1

[Event "Schack-SM 2024: Mastarklassen"]
[Site "Fortnox Arena, Hejaregatan 5, Vaxjo, Sweden"]
[Date "2024.06.29"]
[Round "1.7"]
[White "Muntean, Victor"]
[Black "Joensson, Jacob"]
[Result "0-1"]
[TimeControl "90 minutes for 40 moves + 30 minutes for the rest of the game + 30 seconds per move from move one."]
[WhiteElo "2136"]
[BlackElo "2068"]

1. e4 {[%clk 01:30:57]} {[%emt 00:00:02]} e5 {[%clk 01:30:55]} {[%emt
00:00:05]} 2. Nf3 {[%clk 01:31:20]} {[%emt 00:00:07]} Nc6 {[%clk 01:31:22]}
{[%emt 00:00:04]} 3. Bc4 {[%clk 01:31:45]} {[%emt 00:00:05]} Nf6 {[%clk
01:31:47]} {[%emt 00:00:05]} 4. Ng5 {[%clk 01:32:09]} {[%emt 00:00:06]} d5
{[%clk 01:32:12]} {[%emt 00:00:05]} 5. exd5 {[%clk 01:32:34]} {[%emt 00:00:05]}
Na5 {[%clk 01:32:38]} {[%emt 00:00:04]} 6. Bb5+ {[%clk 01:32:55]} {[%emt
00:00:08]} c6 {[%clk 01:32:59]} {[%emt 00:00:10]} 7. dxc6 {[%clk 01:33:20]}
{[%emt 00:00:04]} bxc6 {[%clk 01:33:23]} {[%emt 00:00:06]} 8. Bd3 {[%clk
01:33:44]} {[%emt 00:00:05]} Ng4 {[%clk 01:33:31]} {[%emt 00:00:23]} 9. Ne4
{[%clk 01:34:03]} {[%emt 00:00:11]} f5 {[%clk 01:33:34]} {[%emt 00:00:27]} 10.
Be2 {[%clk 01:34:26]} {[%emt 00:00:07]} h5 {[%clk 01:33:40]} {[%emt 00:00:24]}
11. h3 {[%clk 01:34:47]} {[%emt 00:00:08]} fxe4 {[%clk 01:33:44]} {[%emt
00:00:26]} 12. hxg4 {[%clk 01:35:10]} {[%emt 00:00:08]} Bc5 {[%clk 01:33:39]}
{[%emt 00:00:35]} 13. Nc3 {[%clk 01:35:27]} {[%emt 00:00:13]} Qd4 {[%clk
01:33:45]} {[%emt 00:00:24]} 14. O-O {[%clk 01:35:46]} {[%emt 00:00:11]} O-O
{[%clk 01:34:08]} {[%emt 00:00:09]} 15. Qe1 {[%clk 01:35:58]} {[%emt 00:00:16]}
hxg4 {[%clk 01:34:24]} {[%emt 00:00:15]} 16. d3 {[%clk 01:36:06]} {[%emt
00:00:21]} Rxf2 {[%clk 01:32:45]} {[%emt 00:02:09]} 17. Qxf2 {[%clk 01:36:01]}
{[%emt 00:00:34]} Qxf2+ {[%clk 01:33:06]} {[%emt 00:00:10]} 18. Rxf2 {[%clk
01:36:27]} {[%emt 00:00:03]} exd3 {[%clk 01:33:30]} {[%emt 00:00:07]} 19. Bxd3
{[%clk 01:36:51]} {[%emt 00:00:06]} g3 {[%clk 01:33:55]} {[%emt 00:00:06]} 20.
Ne4 {[%clk 01:37:13]} {[%emt 00:00:06]} gxf2+ {[%clk 01:34:20]} {[%emt
00:00:06]} 21. Kf1 {[%clk 01:37:38]} {[%emt 00:00:05]} Bd4 {[%clk 01:34:28]}
{[%emt 00:00:23]} 22. c3 {[%clk 01:33:44]} {[%emt 00:04:24]} Bb6 {[%clk
01:34:49]} {[%emt 00:00:07]} 23. b4 {[%clk 01:33:09]} {[%emt 00:01:05]} Nb7
{[%clk 01:34:38]} {[%emt 00:00:41]} 24. a4 {[%clk 01:32:47]} {[%emt 00:00:53]}
a5 {[%clk 01:28:16]} {[%emt 00:06:53]} 25. Bc4+ {[%clk 01:26:43]} {[%emt
00:06:33]} Kh8 {[%clk 01:25:00]} {[%emt 00:03:45]} 26. Nxf2 {[%clk 01:20:00]}
{[%emt 00:07:12]} Nd6 {[%clk 01:11:47]} {[%emt 00:13:44]} 27. Bd3 {[%clk
01:16:35]} {[%emt 00:03:54]} Be6 {[%clk 01:10:43]} {[%emt 00:01:35]} 28. Ke2
{[%clk 01:12:30]} {[%emt 00:04:35]} axb4 {[%clk 01:04:20]} {[%emt 00:06:52]} 29.
Bb2 {[%clk 01:02:12]} {[%emt 00:10:49]} b3 {[%clk 01:01:38]} {[%emt 00:03:13]}
30. Rh1+ {[%clk 00:56:51]} {[%emt 00:05:51]} Kg8 {[%clk 01:01:52]} {[%emt
00:00:16]} 31. Rh4 {[%clk 00:57:13]} {[%emt 00:00:08]} Bd8 {[%clk 00:58:30]}
{[%emt 00:03:52]} 32. Rh5 {[%clk 00:48:59]} {[%emt 00:08:44]} e4 {[%clk
00:57:57]} {[%emt 00:01:04]} 33. Bb1 {[%clk 00:48:38]} {[%emt 00:00:50]} e3
{[%clk 00:58:12]} {[%emt 00:00:16]} 34. Re5 {[%clk 00:46:17]} {[%emt 00:02:50]}
Bc4+ {[%clk 00:58:13]} {[%emt 00:00:28]} 35. Nd3 {[%clk 00:42:28]} {[%emt
00:04:21]} Rxa4 {[%clk 00:53:58]} {[%emt 00:04:45]} 36. Rxe3 {[%clk 00:35:57]}
{[%emt 00:07:01]} Bf6 {[%clk 00:51:42]} {[%emt 00:02:46]} 37. Kd1 {[%clk
00:35:08]} {[%emt 00:01:16]} Bxd3 {[%clk 00:43:34]} {[%emt 00:08:41]} 38. Bxd3
{[%clk 00:33:38]} {[%emt 00:02:00]} Nc4 {[%clk 00:40:21]} {[%emt 00:03:43]} 39.
Bxc4+ {[%clk 00:33:02]} {[%emt 00:01:07]} Rxc4 {[%clk 00:40:42]} {[%emt
00:00:08]} 40. Re8+ {[%clk 00:33:28]} {[%emt 00:00:04]} Kf7 {[%clk 00:41:02]}
{[%emt 00:00:10]} 41. Rb8 {[%clk 00:33:51]} {[%emt 00:00:07]} Bxc3 {[%clk
00:39:31]} {[%emt 00:02:01]} 42. Rxb3 {[%clk 00:34:09]} {[%emt 00:00:12]} Bxb2
{[%clk 00:39:29]} {[%emt 00:00:32]} 43. Rxb2 {[%clk 00:34:34]} {[%emt
00:00:05]} Re4 {[%clk 00:39:46]} {[%emt 00:00:12]} 44. Rc2 {[%clk 00:33:53]}
{[%emt 00:01:12]} Re6 {[%clk 00:40:01]} {[%emt 00:00:15]} 45. Kd2 {[%clk
00:33:28]} {[%emt 00:00:55]} Ke7 {[%clk 00:36:25]} {[%emt 00:04:06]} 46. Rc5
{[%clk 00:27:59]} {[%emt 00:05:59]} Rg6 {[%clk 00:36:45]} {[%emt 00:00:10]} 47.
Ke3 {[%clk 00:28:19]} {[%emt 00:00:09]} Kd6 {[%clk 00:36:19]} {[%emt 00:00:56]}
48. Rc2 {[%clk 00:28:43]} {[%emt 00:00:05]} Kd5 {[%clk 00:36:10]} {[%emt
00:00:41]} 49. Kf4 {[%clk 00:18:16]} {[%emt 00:10:56]} c5 {[%clk 00:27:41]}
{[%emt 00:08:58]} 50. Rd2+ {[%clk 00:16:06]} {[%emt 00:02:40]} Kc4 {[%clk
00:26:27]} {[%emt 00:01:45]} 51. g4 {[%clk 00:15:48]} {[%emt 00:00:48]} Rc6
{[%clk 00:21:59]} {[%emt 00:04:58]} 52. g5 {[%clk 00:10:53]} {[%emt 00:05:25]}
Kb5 {[%clk 00:20:53]} {[%emt 00:01:37]} 53. Rb2+ {[%clk 00:10:33]} {[%emt
00:00:50]} Ka6 {[%clk 00:20:57]} {[%emt 00:00:25]} 54. Ra2+ {[%clk 00:02:57]}
{[%emt 00:08:05]} Kb7 {[%clk 00:21:16]} {[%emt 00:00:12]} 55. Ke3 {[%clk
00:02:16]} {[%emt 00:01:10]} c4 {[%clk 00:20:51]} {[%emt 00:00:55]} 56. Kd2
{[%clk 00:02:22]} {[%emt 00:00:24]} Kb6 {[%clk 00:19:39]} {[%emt 00:01:43]} 57.
Kc3 {[%clk 00:02:32]} {[%emt 00:00:19]} Kc5 {[%clk 00:19:45]} {[%emt 00:00:24]}
58. Ra7 {[%clk 00:00:38]} {[%emt 00:02:24]} g6 {[%clk 00:20:02]} {[%emt
00:00:14]} 59. Rf7 {[%clk 00:29:17]} {[%emt 00:01:50]} Kd5 {[%clk 00:49:48]}
{[%emt 00:00:44]} 60. Re7 {[%clk 00:24:23]} {[%emt 00:05:23]} Re6 {[%clk
00:47:30]} {[%emt 00:02:49]} 61. Rg7 {[%clk 00:14:53]} {[%emt 00:10:00]} Ke4
{[%clk 00:46:03]} {[%emt 00:01:56]} 62. Rf7 {[%clk 00:14:26]} {[%emt 00:00:57]}
Re5 {[%clk 00:46:25]} {[%emt 00:00:09]} 63. Kxc4 {[%clk 00:14:06]} {[%emt
00:00:51]} Rxg5 {[%clk 00:46:46]} {[%emt 00:00:08]} 64. Rf8 {[%clk 00:13:19]}
{[%emt 00:01:17]} Rg1 {[%clk 00:45:37]} {[%emt 00:01:39]} 65. Kc3 {[%clk
00:13:18]} {[%emt 00:00:31]} Rd1 {[%clk 00:45:58]} {[%emt 00:00:09]} 0-1